fUSD/lending_fUSD_20240519
["ID","MTS","AMOUNT","RATE_DAILY","PERIOD"]
[327499845,1716125518599,-150.0,0.00036,2]
[327499846,1716125518608,-500.0,0.00036,120]
[327499847,1716125518617,-150.0,0.00036,2]
[327499848,1716125518627,-650.0,0.00036,120]
[327499849,1716125518636,-207.0,0.00036,2]
[327499850,1716125518646,-500.0,0.00036164,2]
[327499851,1716125518656,-353.0,0.000362,25]
[327499852,1716125518666,-210.86034716,0.00036211,8]
[327499853,1716125518675,-1059.36517778,0.00036372,35]
[327499854,1716125518684,-156.99,0.00036424,120]
[327499855,1716125518694,-446.66,0.00036533,2]
[327499856,1716125518704,-841.28,0.00036533,2]
[327499857,1716125518714,-523.91,0.00036533,2]
[327499858,1716125518728,-523.91,0.00036533,2]
[327499859,1716125518746,-523.91,0.00036533,2]
[327499860,1716125518755,-199.78,0.00036533,2]
[327499861,1716125518765,-150.0,0.00036554,2]
[327499862,1716125518774,-595.85957774,0.00036568,120]
[327499863,1716125518784,-1695.26144,0.00036645,2]
[327499864,1716125518793,-353.0,0.000367,26]
[327499865,1716125518802,-150.0,0.0003679,120]
[327499866,1716125518811,-996.599999,0.000369,18]
[327499867,1716125518821,-800.0,0.0003698,14]
[327499868,1716125518830,-900.0,0.00037,38]
[327499869,1716125518840,-200.0,0.00037,2]
[327499870,1716125518849,-500.0,0.00037,120]
[327499871,1716125518858,-150.0,0.00037,2]
[327499872,1716125518868,-793.17875967,0.00037,2]
[327499873,1716125518878,-150.0,0.00037046,120]
[327499874,1716125518887,-150.0,0.00037173,120]
[327499875,1716125518896,-353.0,0.000372,26]
[327499876,1716125518906,-938.92,0.00037359,2]
[327499877,1716125518915,-152.0,0.00037421,5]
[327499878,1716125518924,-237.13966848,0.00037421,5]
[327499879,1716125518933,-150.0,0.00037491,2]
[327499880,1716125518943,-450.0,0.000375,30]
[327499881,1716125518952,-450.0,0.000375,30]
[327499882,1716125518961,-2416.0,0.00037596,120]
[327499883,1716125518971,-319.53353507,0.00037602,10]
[327499884,1716125518980,-500.0,0.00037602,10]
[327499885,1716125518989,-600.0,0.00037602,10]
[327499886,1716125518999,-500.0,0.00037602,10]
[327499887,1716125519008,-181.71,0.00037663,120]
[327499888,1716125519017,-1441.84001218,0.000377,4]
[327499889,1716125519027,-353.0,0.000377,27]
[327499890,1716125519036,-251.68429434,0.0003777,7]
[327499891,1716125519045,-164.52014813,0.000378,2]
[327499892,1716125519056,-1059.36517778,0.00037881,40]
[327499893,1716125519065,-209.91813561,0.00037999,120]
[327499894,1716125519076,-245.77700352,0.00038,60]
[327499895,1716125519085,-500.0,0.00038,30]
[327499896,1716125519096,-900.0,0.00038,39]
[327499897,1716125519105,-1000.0,0.00038,2]
[327499898,1716125519114,-428.57726641,0.00038,120]
[327499899,1716125519123,-500.0,0.00038,120]
[327499900,1716125519133,-300.0,0.00038,120]
[327499901,1716125519143,-150.0,0.00038,15]
[327499902,1716125519152,-150.0,0.00038,30]
[327499903,1716125519162,-600.0,0.0003815,10]
[327499904,1716125519172,-500.0,0.0003815,10]
[327499905,1716125519186,-353.0,0.000382,27]
[327499906,1716125519195,-151.0,0.00038356,2]
[327499907,1716125519205,-151.0,0.00038356,2]
[327499908,1716125519215,-151.0,0.00038356,2]
[327499909,1716125519224,-151.0,0.00038356,2]
[327499910,1716125519233,-151.0,0.00038356,2]
[327499911,1716125519242,-185.138855,0.00038356,2]
[327499912,1716125519252,-16060.1476661,0.000384,2]
[327499913,1716125519263,-177.0,0.000384,2]
[327499914,1716125519273,-319.37168759,0.000384,2]
[327499915,1716125519282,-250.0,0.000384,2]
[327499916,1716125519292,-150.0,0.00038428,2]
[327499917,1716125519301,-159.64,0.00038575,2]
[327499918,1716125519310,-631.79285754,0.00038646,40]
[327499919,1716125519319,-25000.0,0.00038646,40]
[327499920,1716125519328,-25000.0,0.00038646,40]
[327499921,1716125519337,-25000.0,0.00038646,40]
[327499922,1716125519347,-5854.20305649,0.00038646,40]
[327499923,1716125519357,-1310.26511953,0.00038646,40]
[327499924,1716125519366,-600.0,0.00038698,10]
[327499925,1716125519375,-500.0,0.00038698,10]
[327499926,1716125519383,-353.0,0.000387,28]
[327499927,1716125519393,-213.17670017,0.00038821,3]
[327499928,1716125519403,-335732.0239739,0.0003888,14]
[327499929,1716125519412,-17431.67639484,0.0003888,14]
[327499930,1716125519421,-150.0,0.00038886,120]
[327499931,1716125519430,-888.9089073,0.000389,30]
[327499932,1716125519440,-35000.00000099,0.000389,120]
[327499933,1716125519449,-50000.0,0.00039,25]
[327499934,1716125519458,-50000.0,0.00039,19]
[327499935,1716125519467,-500.0,0.00039,30]
[327499936,1716125519476,-104275.44159648,0.00039,15]
[327499937,1716125519486,-215.69258495,0.00039,14]
[327499938,1716125519495,-900.0,0.00039,40]
[327499939,1716125519505,-151.26202987,0.00039,10]
[327499940,1716125519514,-500.0,0.00039,120]
[327499941,1716125519523,-150.0,0.00039,15]
[327499942,1716125519532,-150.0,0.00039,30]
[327499943,1716125519542,-916.02290987,0.00039,120]
[327499944,1716125519551,-207.0,0.00039,2]
[327499945,1716125519560,-150.0,0.00039078,120]
[327499946,1716125519569,-150.0,0.00039104,120]
[327499947,1716125519579,-353.0,0.000392,28]
[327499948,1716125519588,-600.0,0.00039246,10]
[327499949,1716125519598,-500.0,0.00039246,10]
[327499950,1716125519607,-150.0,0.00039366,2]
[327499951,1716125519617,-1059.36517778,0.00039391,46]
[327499952,1716125519626,-563.18002123,0.000394,30]
[327499953,1716125519637,-6355.93213653,0.00039493,4]
[327499954,1716125519646,-551.30261494,0.00039588,3]
[327499955,1716125519655,-938.92,0.00039623,2]
[327499956,1716125519664,-372.665471,0.000397,29]
[327499957,1716125519673,-789.21250628,0.00039728,10]
[327499958,1716125519683,-344.620046,0.00039728,60]
[327499959,1716125519692,-3220.28398094,0.00039728,4]
[327499960,1716125519701,-3804.95435014,0.00039728,2]
[327499961,1716125519710,-1262.30364489,0.00039728,120]
[327499962,1716125519719,-5182.97271811,0.00039728,4]
[327499963,1716125519728,-1264.63964724,0.00039728,4]
[327499964,1716125519738,-207.27612485,0.00039728,4]
[327499965,1716125519748,-8240.1637822,0.00039728,4]
[327499966,1716125519757,-506.75856394,0.00039728,4]
[327499967,1716125519766,-600.0,0.00039794,10]
[327499968,1716125519775,-406.78855609,0.00039794,10]
[327499969,1716125519784,-704.69345,0.00039808,7]
[327499970,1716125519793,-753.13794163,0.0003984,10]
[327499971,1716125519802,-500.924,0.00039888,7]
[327499972,1716125519812,-210.86034716,0.00039949,12]
[327499973,1716125519822,-586.40699315,0.0003998,30]
[327499974,1716125519831,-722.2539997,0.0003998,30]
[327499975,1716125519841,-720.0,0.0003998,30]
[327499976,1716125519851,-50000.0,0.0004,30]
[327499977,1716125519860,-50000.0,0.0004,29]
[327499978,1716125519869,-1807.70243348,0.0004,4]
[327499979,1716125519878,-338.71874089,0.0004,2]
[327499980,1716125519887,-618.8679154,0.0004,4]
[327499981,1716125519897,-2863.62601737,0.0004,20]
[327499982,1716125519907,-260.17562336,0.0004,4]
[327499983,1716125519916,-1000.0,0.0004,120]
[327499984,1716125519925,-1000.0,0.0004,21]
[327499985,1716125519934,-2110.0,0.0004,15]
[327499986,1716125519943,-1570.0,0.0004,120]
[327499987,1716125519953,-180.20586108,0.0004,4]
[327499988,1716125519962,-500.0,0.0004,120]
[327499989,1716125519972,-1735.57699085,0.0004,2]
[327499990,1716125519981,-155.81401427,0.0004,15]
[327499991,1716125519990,-510.2573207,0.0004,2]
[327499992,1716125519999,-900.0,0.0004,41]
[327499993,1716125520010,-339.0,0.0004,30]
[327499994,1716125520020,-404.65674219,0.0004,120]
[327499995,1716125520029,-500.0,0.0004,120]
[327499996,1716125520039,-5000.0,0.0004,120]
[327499997,1716125520048,-853.32,0.0004,2]
[327499998,1716125520057,-3000.0,0.0004,2]
[327499999,1716125520066,-3000.0,0.0004,2]
[327500000,1716125520076,-3000.0,0.0004,2]
[327500001,1716125520086,-3000.0,0.0004,2]
[327500002,1716125520096,-3003.02,0.0004,2]
[327500003,1716125520106,-200.0,0.0004,5]
[327500004,1716125520115,-215.7187997,0.0004,120]
[327500005,1716125520124,-2000.0,0.0004,5]
[327500006,1716125520134,-288.64006167,0.0004,120]
[327500007,1716125520143,-1744.7442,0.0004,5]
[327500008,1716125520152,-1468.40541393,0.0004,30]
[327500009,1716125520161,-2000.0,0.0004,5]
[327500010,1716125520170,-304.98275714,0.0004,15]
[327500011,1716125520184,-529.4708715,0.0004,100]
[327500012,1716125520193,-306.26372084,0.0004,4]
[327500013,1716125520203,-169.1541471,0.0004,4]
[327500014,1716125520212,-200.3709125,0.0004,30]
[327500015,1716125520223,-400.0,0.0004,2]
[327500016,1716125520232,-703.8251145,0.0004,2]
[327500017,1716125520242,-1000.0,0.0004,120]
[327500018,1716125520251,-45131.0,0.0004,30]
[327500019,1716125520261,-477.12749073,0.0004,30]
[327500020,1716125520270,-394.35630752,0.0004,7]
[327500021,1716125520280,-317.31686279,0.0004,120]
[327500022,1716125520290,-409.54800219,0.0004,30]
[327500023,1716125520299,-601.1380461,0.0004,2]
[327500024,1716125520309,-620.35361011,0.0004,2]
[327500025,1716125520318,-370.51419023,0.0004,2]
[327500026,1716125520327,-453.92719789,0.0004,120]
[327500027,1716125520337,-2440.31732195,0.0004,120]
[327500028,1716125520348,-302.93455161,0.0004,30]
[327500029,1716125520357,-2000.0,0.0004,5]
[327500030,1716125520367,-500.0,0.0004,120]
[327500031,1716125520376,-750.0,0.0004,120]
[327500032,1716125520511,-500.0,0.0004,120]
[327500033,1716125520521,-500.0,0.0004,120]
[327500034,1716125520531,-500.0,0.0004,120]
[327500035,1716125520540,-642.98060228,0.0004,120]
[327500036,1716125520549,-2000.3564,0.0004,5]
[327500037,1716125520558,-150.0,0.0004,15]
[327500038,1716125520567,-150.0,0.0004,30]
[327500039,1716125520577,-2000.0,0.0004,5]
[327500040,1716125520586,-297.29,0.0004,7]
[327500041,1716125520597,-2000.0,0.0004,5]
[327500042,1716125520606,-890.0,0.0004,18]
[327500043,1716125520615,-2000.0,0.0004,5]
[327500044,1716125520624,-2000.0,0.0004,5]
[327500045,1716125520634,-790.33,0.0004,120]
[327500046,1716125520644,-763.07,0.0004,120]
[327500047,1716125520653,-845.6,0.0004,120]
[327500048,1716125520662,-394.12867716,0.0004001,30]
[327500049,1716125520671,-750.0,0.00040045,30]
[327500050,1716125520680,-200000.0,0.000401,30]
[327500051,1716125520689,-704.69345,0.00040208,7]
[327500052,1716125520698,-150.0,0.00040303,2]
[327500053,1716125520707,-600.0,0.00040342,10]
[327500054,1716125520716,-500.0,0.00040342,10]
[327500055,1716125520726,-750.0,0.00040458,30]
[327500056,1716125520735,-1767.33185071,0.0004048,60]
[327500057,1716125520744,-2110.0,0.000405,15]
[327500058,1716125520754,-2652.45600201,0.00040798,58]
[327500059,1716125520764,-6494.0,0.000408,120]
[327500060,1716125520773,-750.0,0.00040871,30]
[327500061,1716125520783,-726.62135745,0.0004088,120]
[327500062,1716125520792,-150.0,0.0004089,120]
[327500063,1716125520802,-1059.36517778,0.000409,51]
[327500064,1716125520812,-352.68152026,0.00040993,120]
[327500065,1716125520822,-5977.84696429,0.00040998,30]
[327500066,1716125520831,-50000.0,0.00041,21]
[327500067,1716125520840,-50000.0,0.00041,31]
[327500068,1716125520850,-3364.00508544,0.00041,4]
[327500069,1716125520860,-1000.0,0.00041,120]
[327500070,1716125520869,-2130.38,0.00041,15]
[327500071,1716125520878,-29959.00476585,0.00041,120]
[327500072,1716125520888,-900.0,0.00041,42]
[327500073,1716125520897,-502949.19011192,0.00041,30]
[327500074,1716125520906,-500.0,0.00041,120]
[327500075,1716125520916,-367.12838192,0.00041,120]
[327500076,1716125520925,-611.36,0.00041,7]
[327500077,1716125520934,-732.44,0.00041,7]
[327500078,1716125520943,-647.26,0.00041,7]
[327500079,1716125520952,-544.54904626,0.00041,60]
[327500080,1716125520961,-200.0,0.00041,30]
[327500081,1716125520971,-200.0,0.00041,30]
[327500082,1716125520980,-316.0,0.00041,30]
[327500083,1716125520989,-750.0,0.00041,120]
[327500084,1716125520998,-500.0,0.00041,30]
[327500085,1716125521008,-500.0,0.00041,30]
[327500086,1716125521016,-500.0,0.00041,30]
[327500087,1716125521025,-500.0,0.00041,30]
[327500088,1716125521034,-500.0,0.00041,30]
[327500089,1716125521043,-500.0,0.00041,30]
[327500090,1716125521052,-500.0,0.00041,30]
[327500091,1716125521061,-563.0,0.00041,30]
[327500092,1716125521070,-500.0,0.00041,30]
[327500093,1716125521079,-500.0,0.00041,30]
[327500094,1716125521088,-500.0,0.00041,30]
[327500095,1716125521099,-500.0,0.00041,30]
[327500096,1716125521107,-500.0,0.00041,30]
[327500097,1716125521116,-500.0,0.00041,30]
[327500098,1716125521125,-500.0,0.00041,30]
[327500099,1716125521134,-782.0,0.00041,30]
[327500100,1716125521142,-150.0,0.00041,15]
[327500101,1716125521151,-150.0,0.00041,30]
[327500102,1716125521161,-479.04583903,0.00041041,120]
[327500103,1716125521170,-2000.0,0.00041095,30]
[327500104,1716125521183,-2000.0,0.00041095,30]
[327500105,1716125521192,-2000.0,0.00041095,30]
[327500106,1716125521201,-2000.0,0.00041095,30]
[327500107,1716125521210,-2000.0,0.00041095,30]
[327500108,1716125521221,-2000.0,0.00041095,30]
[327500109,1716125521230,-2000.0,0.00041095,30]
[327500110,1716125521239,-915.49115753,0.00041095,30]
[327500111,1716125521248,-2000.0,0.00041095,30]
[327500112,1716125521257,-500.0,0.00041095,2]
[327500113,1716125521266,-500.0,0.00041095,2]
[327500114,1716125521275,-500.0,0.00041095,2]
[327500115,1716125521284,-500.0,0.00041095,2]
[327500116,1716125521293,-500.0,0.00041095,2]
[327500117,1716125521302,-500.0,0.00041095,2]
[327500118,1716125521311,-500.0,0.00041095,2]
[327500119,1716125521319,-500.0,0.00041095,2]
[327500120,1716125521328,-500.0,0.00041095,2]
[327500121,1716125521338,-500.0,0.00041095,2]
[327500122,1716125521350,-500.0,0.00041095,2]
[327500123,1716125521359,-500.0,0.00041095,2]
[327500124,1716125521368,-500.0,0.00041095,2]
[327500125,1716125521377,-500.0,0.00041095,2]
[327500126,1716125521386,-500.0,0.00041095,2]
[327500127,1716125521395,-632.88220217,0.00041095,2]
[327500128,1716125521404,-1000.0,0.00041095,30]
[327500129,1716125521413,-810.10288482,0.00041095,30]
[327500130,1716125521423,-600.0,0.00041095,15]
[327500131,1716125521432,-600.0,0.00041095,15]
[327500132,1716125521441,-600.0,0.00041095,15]
[327500133,1716125521450,-600.0,0.00041095,15]
[327500134,1716125521460,-600.0,0.00041095,15]
[327500135,1716125521469,-595.04778882,0.00041095,15]
[327500136,1716125521478,-510.0,0.00041095,120]
[327500137,1716125521495,-500.0,0.00041095,2]
[327500138,1716125521514,-500.0,0.00041095,2]
[327500139,1716125521531,-500.0,0.00041095,2]
[327500140,1716125521550,-163.69328764,0.00041095,2]
[327500141,1716125521572,-302.54365804,0.00041096,10]
[327500142,1716125521590,-2500.0,0.00041096,30]
[327500143,1716125521609,-157.0,0.00041096,2]
[327500144,1716125521624,-1000.0,0.00041096,30]
[327500145,1716125521641,-500.0,0.00041096,2]
[327500146,1716125521661,-150.0,0.0004124,2]
[327500147,1716125521680,-618.48476443,0.00041284,30]
[327500148,1716125521692,-999.14526553,0.00041284,30]
[327500149,1716125521711,-750.0,0.00041284,30]
[327500150,1716125521726,-1280.89669079,0.00041284,30]
[327500151,1716125521742,-300.0,0.000413,7]
[327500152,1716125521754,-155.64,0.00041309,2]
[327500153,1716125521772,-510.0,0.00041369,120]
[327500154,1716125521787,-600.0,0.00041438,30]
[327500155,1716125521802,-500.0,0.00041438,30]
[327500156,1716125521816,-500.0,0.000416,7]
[327500157,1716125521831,-629.45667435,0.00041643,120]
[327500158,1716125521847,-1695.26144,0.00041645,2]
[327500159,1716125521862,-750.0,0.00041696,30]
[327500160,1716125521877,-500.0,0.00041712,2]
[327500161,1716125521891,-938.92,0.00041886,2]
[327500162,1716125521906,-866.91817332,0.000419,111]
[327500163,1716125521921,-269.0,0.00041918,30]
[327500164,1716125521935,-600.0,0.00041986,30]
[327500165,1716125521949,-500.0,0.00041986,30]
[327500166,1716125521963,-50000.0,0.00042,22]
[327500167,1716125521977,-50000.0,0.00042,32]
[327500168,1716125521992,-2500.0,0.00042,120]
[327500169,1716125522007,-8336.05863711,0.00042,10]
[327500170,1716125522021,-156.06875008,0.00042,120]
[327500171,1716125522036,-2341.21314521,0.00042,30]
[327500172,1716125522050,-503.32686059,0.00042,120]
[327500173,1716125522066,-8310.90128851,0.00042,90]
[327500174,1716125522079,-611.60868896,0.00042,120]
[327500175,1716125522093,-2854.0,0.00042,30]
[327500176,1716125522108,-570.0,0.00042,3]
[327500177,1716125522122,-150.0,0.00042,15]
[327500178,1716125522137,-207.0,0.00042,2]
[327500179,1716125522150,-750.0,0.00042109,30]
[327500180,1716125522166,-150.0,0.00042177,2]
[327500181,1716125522183,-906.75,0.00042327,10]
[327500182,1716125522197,-500.0,0.00042338,2]
[327500183,1716125522212,-150.0,0.00042363,120]
[327500184,1716125522227,-607.3,0.0004245,10]
[327500185,1716125522241,-1000.0,0.00042466,30]
[327500186,1716125522258,-153.48669905,0.0004247,7]
[327500187,1716125522272,-153.48669905,0.0004247,7]
[327500188,1716125522286,-153.48669905,0.0004247,7]
[327500189,1716125522300,-153.48669905,0.0004247,7]
[327500190,1716125522313,-153.48669905,0.0004247,7]
[327500191,1716125522327,-153.48669905,0.0004247,7]
[327500192,1716125522342,-153.48669905,0.0004247,7]
[327500193,1716125522356,-153.48669905,0.0004247,7]
[327500194,1716125522371,-153.48669905,0.0004247,7]
[327500195,1716125522385,-153.48669905,0.0004247,7]
[327500196,1716125522401,-153.48669905,0.0004247,7]
[327500197,1716125522415,-153.48669905,0.0004247,7]
[327500198,1716125522428,-153.48669905,0.0004247,7]
[327500199,1716125522442,-153.48669905,0.0004247,7]
[327500200,1716125522457,-153.48669905,0.0004247,7]
[327500201,1716125522470,-153.48669905,0.0004247,7]
[327500202,1716125522484,-153.48669905,0.0004247,7]
[327500203,1716125522498,-153.48669905,0.0004247,7]
[327500204,1716125522512,-153.98,0.0004247,7]
[327500205,1716125522531,-583.32445638,0.0004247,7]
[327500206,1716125522544,-583.32445638,0.0004247,7]
[327500207,1716125522559,-583.32445638,0.0004247,7]
[327500208,1716125522571,-583.32445638,0.0004247,7]
[327500209,1716125522586,-583.32445638,0.0004247,7]
[327500210,1716125522602,-583.32445638,0.0004247,7]
[327500211,1716125522617,-583.32445638,0.0004247,7]
[327500212,1716125522632,-583.32445638,0.0004247,7]
[327500213,1716125522645,-583.32445638,0.0004247,7]
[327500214,1716125522659,-583.32445638,0.0004247,7]
[327500215,1716125522673,-583.32445638,0.0004247,7]
[327500216,1716125522687,-583.32445638,0.0004247,7]
[327500217,1716125522702,-583.32445638,0.0004247,7]
[327500218,1716125522716,-583.32445638,0.0004247,7]
[327500219,1716125522730,-766.18665315,0.0004247,7]
[327500220,1716125522744,-766.18665315,0.0004247,7]
[327500221,1716125522759,-766.18665315,0.0004247,7]
[327500222,1716125522774,-766.18665315,0.0004247,7]
[327500223,1716125522788,-766.18665315,0.0004247,7]
[327500224,1716125522803,-766.18665315,0.0004247,7]
[327500225,1716125522817,-766.18665315,0.0004247,7]
[327500226,1716125522832,-766.18665315,0.0004247,7]
[327500227,1716125522846,-766.18665315,0.0004247,7]
[327500228,1716125522861,-766.18665315,0.0004247,7]
[327500229,1716125522874,-766.18665315,0.0004247,7]
[327500230,1716125522888,-766.18665315,0.0004247,7]
[327500231,1716125522903,-766.18665315,0.0004247,7]
[327500232,1716125522918,-766.18665315,0.0004247,7]
[327500233,1716125522933,-766.18665315,0.0004247,7]
[327500234,1716125522948,-766.18665315,0.0004247,7]
[327500235,1716125522962,-766.18665315,0.0004247,7]
[327500236,1716125522977,-766.18665315,0.0004247,7]
[327500237,1716125522993,-766.18665315,0.0004247,7]
[327500238,1716125523008,-766.68,0.0004247,7]
[327500239,1716125523022,-3064.8216126,0.0004247,7]
[327500240,1716125523037,-3064.8216126,0.0004247,7]
[327500241,1716125523240,-3064.8216126,0.0004247,7]
[327500242,1716125523286,-3064.8216126,0.0004247,7]
[327500243,1716125523296,-3064.8216126,0.0004247,7]
[327500244,1716125523306,-3064.8216126,0.0004247,7]
[327500245,1716125523315,-3064.8216126,0.0004247,7]
[327500246,1716125523324,-3064.8216126,0.0004247,7]
[327500247,1716125523334,-3064.8216126,0.0004247,7]
[327500248,1716125523343,-3064.8216126,0.0004247,7]
[327500249,1716125523355,-3064.8216126,0.0004247,7]
[327500250,1716125523364,-3064.8216126,0.0004247,7]
[327500251,1716125523373,-3064.8216126,0.0004247,7]
[327500252,1716125523382,-3064.8216126,0.0004247,7]
[327500253,1716125523391,-196.05578417,0.0004247,7]
[327500254,1716125523401,-196.05578417,0.0004247,7]
[327500255,1716125523411,-196.05578417,0.0004247,7]
[327500256,1716125523420,-196.05578417,0.0004247,7]
[327500257,1716125523430,-196.05578417,0.0004247,7]
[327500258,1716125523440,-196.05578417,0.0004247,7]
[327500259,1716125523449,-196.05578417,0.0004247,7]
[327500260,1716125523458,-196.05578417,0.0004247,7]
[327500261,1716125523468,-196.05578417,0.0004247,7]
[327500262,1716125523477,-196.05578417,0.0004247,7]
[327500263,1716125523487,-196.05578417,0.0004247,7]
[327500264,1716125523496,-196.05578417,0.0004247,7]
[327500265,1716125523505,-196.05578417,0.0004247,7]
[327500266,1716125523515,-196.05578417,0.0004247,7]
[327500267,1716125523524,-196.05578417,0.0004247,7]
[327500268,1716125523534,-196.05578417,0.0004247,7]
[327500269,1716125523544,-196.05578417,0.0004247,7]
[327500270,1716125523554,-196.05578417,0.0004247,7]
[327500271,1716125523563,-196.05578417,0.0004247,7]
[327500272,1716125523573,-196.55,0.0004247,7]
[327500273,1716125523583,-784.29813669,0.0004247,7]
[327500274,1716125523592,-784.29813669,0.0004247,7]
[327500275,1716125523603,-784.29813669,0.0004247,7]
[327500276,1716125523612,-784.29813669,0.0004247,7]
[327500277,1716125523621,-784.29813669,0.0004247,7]
[327500278,1716125523631,-784.29813669,0.0004247,7]
[327500279,1716125523641,-784.29813669,0.0004247,7]
[327500280,1716125523650,-784.29813669,0.0004247,7]
[327500281,1716125523660,-784.29813669,0.0004247,7]
[327500282,1716125523669,-784.29813669,0.0004247,7]
[327500283,1716125523679,-784.29813669,0.0004247,7]
[327500284,1716125523688,-784.29813669,0.0004247,7]
[327500285,1716125523697,-784.29813669,0.0004247,7]
[327500286,1716125523706,-784.29813669,0.0004247,7]
[327500287,1716125523716,-238.66065179,0.000425,30]
[327500288,1716125523726,-750.0,0.00042522,30]
[327500289,1716125523735,-600.0,0.00042534,30]
[327500290,1716125523745,-500.0,0.00042534,30]
[327500291,1716125523755,-19948.75,0.00042653,30]
[327500292,1716125523765,-583.32445638,0.00042655,7]
[327500293,1716125523774,-3064.8216126,0.00042655,7]
[327500294,1716125523784,-784.29813669,0.00042655,7]
[327500295,1716125523793,-570.11312037,0.0004267,30]
[327500296,1716125523803,-334.33,0.00042683,10]
[327500297,1716125523813,-798.69069079,0.00042698,120]
[327500298,1716125523822,-283.61227472,0.00042698,90]
[327500299,1716125523832,-376.13157765,0.00042698,90]
[327500300,1716125523841,-2689.0,0.000427,92]
[327500301,1716125523853,-459.38132213,0.000429,30]
[327500302,1716125523863,-500.0,0.00042973,2]
[327500303,1716125523873,-10565.94669376,0.0004299,120]
[327500304,1716125523882,-50000.0,0.00043,23]
[327500305,1716125523892,-50000.0,0.00043,33]
[327500306,1716125523901,-1000.0,0.00043,120]
[327500307,1716125523912,-1000.0,0.00043,120]
[327500308,1716125523921,-1000.0,0.00043,120]
[327500309,1716125523930,-1000.0,0.00043,120]
[327500310,1716125523940,-1000.0,0.00043,120]
[327500311,1716125523949,-1000.0,0.00043,120]
[327500312,1716125523960,-1000.0,0.00043,120]
[327500313,1716125523970,-1000.0,0.00043,120]
[327500314,1716125523979,-1000.0,0.00043,120]
[327500315,1716125523988,-1000.0,0.00043,120]
[327500316,1716125523998,-550.0,0.00043,120]
[327500317,1716125524007,-2705.0,0.00043,30]
[327500318,1716125524016,-5000.0,0.00043,10]
[327500319,1716125524026,-722.45,0.00043,120]
[327500320,1716125524036,-89350.79155446,0.00043,60]
[327500321,1716125524045,-749.0,0.00043,120]
[327500322,1716125524054,-715.79872008,0.00043,120]
[327500323,1716125524064,-1405.25241793,0.00043,30]
[327500324,1716125524073,-150.0,0.00043,15]
[327500325,1716125524082,-150.0,0.00043,30]
[327500326,1716125524092,-404.28379478,0.00043,60]
[327500327,1716125524103,-715.63,0.00043,60]
[327500328,1716125524112,-600.0,0.00043082,30]
[327500329,1716125524122,-500.0,0.00043082,30]
[327500330,1716125524131,-583.32445638,0.00043104,7]
[327500331,1716125524140,-3064.8216126,0.00043104,7]
[327500332,1716125524150,-784.29813669,0.00043104,7]
[327500333,1716125524160,-150.0,0.00043115,2]
[327500334,1716125524170,-840.56185958,0.000433,60]
[327500335,1716125524182,-752.7,0.00043396,30]
[327500336,1716125524192,-752.7,0.00043396,30]
[327500337,1716125524201,-752.7,0.00043396,30]
[327500338,1716125524211,-752.7,0.00043396,30]
[327500339,1716125524220,-583.32445638,0.00043553,7]
[327500340,1716125524230,-3064.8216126,0.00043553,7]
[327500341,1716125524239,-784.29813669,0.00043553,7]
[327500342,1716125524249,-26117.83635606,0.000436,30]
[327500343,1716125524261,-152.119032,0.00043602,30]
[327500344,1716125524271,-516.05529378,0.00043618,2]